fUSD/lending_fUSD_20240720
["ID","MTS","AMOUNT","RATE_DAILY","PERIOD"]
[332719677,1721473939405,-623.37082164,0.00034794,14]
[332719678,1721473939414,-1435.63,0.00034794,14]
[332719679,1721473939423,-1384.5,0.00034794,14]
[332719680,1721473939432,-500.0,0.00034794,14]
[332719681,1721473939442,-500.0,0.00034794,14]
[332719682,1721473939451,-629.23,0.00034794,14]
[332719683,1721473939461,-500.0,0.00034794,14]
[332719684,1721473939471,-502.82,0.00034794,14]
[332719685,1721473939481,-883.99,0.00034794,14]
[332719686,1721473939491,-1123.37,0.00034794,14]
[332719687,1721473939500,-500.0,0.00034794,14]
[332719688,1721473939510,-500.0,0.00034794,14]
[332719689,1721473939519,-594.1,0.00034794,14]
[332719690,1721473939529,-1157.36,0.00034794,14]
[332719691,1721473939538,-500.0,0.00034794,14]
[332719692,1721473939547,-500.0,0.00034794,14]
[332719693,1721473939556,-528.33,0.00034794,14]
[332719694,1721473939565,-500.0,0.00034794,14]
[332719695,1721473939574,-500.0,0.00034794,14]
[332719696,1721473939583,-500.0,0.00034794,14]
[332719697,1721473939593,-236.04490569,0.00034794,14]
[332719698,1721473939603,-500.0,0.00034794,14]
[332719699,1721473939612,-500.0,0.00034794,14]
[332719700,1721473939622,-1278.32,0.00034794,14]
[332719701,1721473939632,-500.0,0.00034794,14]
[332719702,1721473939641,-500.0,0.00034794,14]
[332719703,1721473939651,-1279.27,0.00034794,14]
[332719704,1721473939660,-1348.27,0.00034794,14]
[332719705,1721473939669,-500.0,0.00034794,14]
[332719706,1721473939678,-500.0,0.00034794,14]
[332719707,1721473939688,-500.0,0.00034794,14]
[332719708,1721473939697,-500.0,0.00034794,14]
[332719709,1721473939706,-573.23,0.00034794,14]
[332719710,1721473939715,-684.48,0.00034794,14]
[332719711,1721473939724,-887.08,0.00034794,14]
[332719712,1721473939733,-500.0,0.00034794,14]
[332719713,1721473939743,-500.0,0.00034794,14]
[332719714,1721473939752,-500.0,0.00034794,14]
[332719715,1721473939762,-500.0,0.00034794,14]
[332719716,1721473939772,-500.0,0.00034794,14]
[332719717,1721473939782,-500.0,0.00034794,14]
[332719718,1721473939796,-500.0,0.00034794,14]
[332719719,1721473939805,-500.0,0.00034794,14]
[332719720,1721473939815,-570.84,0.00034794,14]
[332719721,1721473939824,-176.8817542,0.00034794,14]
[332719722,1721473939834,-500.0,0.00034794,14]
[332719723,1721473939843,-1048.81,0.00034794,14]
[332719724,1721473939852,-500.0,0.00034794,14]
[332719725,1721473939862,-1318.81,0.00034794,14]
[332719726,1721473939872,-704.95,0.00034794,14]
[332719727,1721473939882,-746.38,0.00034794,14]
[332719728,1721473939891,-1196.24,0.00034794,14]
[332719729,1721473939901,-500.0,0.00034794,14]
[332719730,1721473939910,-500.0,0.00034794,14]
[332719731,1721473939919,-500.0,0.00034794,14]
[332719732,1721473939928,-500.0,0.00034794,14]
[332719733,1721473939939,-500.0,0.00034794,14]
[332719734,1721473939948,-500.0,0.00034794,14]
[332719735,1721473939957,-500.0,0.00034794,14]
[332719736,1721473939967,-500.0,0.00034794,14]
[332719737,1721473939976,-728.0,0.00034794,14]
[332719738,1721473939986,-500.0,0.00034794,14]
[332719739,1721473939995,-500.0,0.00034794,14]
[332719740,1721473940005,-500.0,0.00034794,14]
[332719741,1721473940014,-500.0,0.00034794,14]
[332719742,1721473940024,-512.93,0.00034794,14]
[332719743,1721473940033,-680.74,0.00034794,14]
[332719744,1721473940042,-712.41,0.00034794,14]
[332719745,1721473940052,-500.0,0.00034794,14]
[332719746,1721473940062,-500.0,0.00034794,14]
[332719747,1721473940071,-500.0,0.00034794,14]
[332719748,1721473940081,-1566.46,0.00034794,14]
[332719749,1721473940091,-624.75719333,0.00034794,14]
[332719750,1721473940100,-500.0,0.00034794,14]
[332719751,1721473940109,-689.74,0.00034794,14]
[332719752,1721473940119,-856.87,0.00034794,14]
[332719753,1721473940129,-500.0,0.00034794,14]
[332719754,1721473940138,-912.41,0.00034794,14]
[332719755,1721473940147,-539.45,0.00034794,14]
[332719756,1721473940156,-500.0,0.00034794,14]
[332719757,1721473940166,-1222.76,0.00034794,14]
[332719758,1721473940175,-500.0,0.00034794,14]
[332719759,1721473940184,-907.05,0.00034794,14]
[332719760,1721473940193,-500.0,0.00034794,14]
[332719761,1721473940203,-500.0,0.00034794,14]
[332719762,1721473940211,-662.46,0.00034794,14]
[332719763,1721473940221,-500.0,0.00034794,14]
[332719764,1721473940230,-500.0,0.00034794,14]
[332719765,1721473940239,-500.0,0.00034794,14]
[332719766,1721473940248,-500.0,0.00034794,14]
[332719767,1721473940257,-500.0,0.00034794,14]
[332719768,1721473940267,-500.0,0.00034794,14]
[332719769,1721473940277,-500.0,0.00034794,14]
[332719770,1721473940287,-500.0,0.00034794,14]
[332719771,1721473940296,-930.3,0.00034794,14]
[332719772,1721473940305,-500.0,0.00034794,14]
[332719773,1721473940314,-500.0,0.00034794,14]
[332719774,1721473940325,-500.0,0.00034794,14]
[332719775,1721473940335,-500.0,0.00034794,14]
[332719776,1721473940345,-500.0,0.00034794,14]
[332719777,1721473940354,-500.0,0.00034794,14]
[332719778,1721473940363,-500.0,0.00034794,14]
[332719779,1721473940372,-500.0,0.00034794,14]
[332719780,1721473940381,-500.0,0.00034794,14]
[332719781,1721473940390,-500.0,0.00034794,14]
[332719782,1721473940399,-500.0,0.00034794,14]
[332719783,1721473940408,-500.0,0.00034794,14]
[332719784,1721473940417,-1204.26,0.00034794,14]
[332719785,1721473940426,-500.0,0.00034794,14]
[332719786,1721473940436,-500.0,0.00034794,14]
[332719787,1721473940445,-620.29745,0.00034794,14]
[332719788,1721473940455,-500.0,0.00034794,14]
[332719789,1721473940465,-500.0,0.00034794,14]
[332719790,1721473940474,-652.64,0.00034794,14]
[332719791,1721473940484,-725.14,0.00034794,14]
[332719792,1721473940493,-559.46,0.00034794,14]
[332719793,1721473940502,-1257.23,0.00034794,14]
[332719794,1721473940511,-1075.65,0.00034794,14]
[332719795,1721473940520,-520.88,0.00034794,14]
[332719796,1721473940529,-500.0,0.00034794,14]
[332719797,1721473940540,-969.99,0.00034794,14]
[332719798,1721473940549,-500.0,0.00034794,14]
[332719799,1721473940559,-856.07,0.00034794,14]
[332719800,1721473940569,-500.0,0.00034794,14]
[332719801,1721473940579,-1295.85,0.00034794,14]
[332719802,1721473940589,-500.0,0.00034794,14]
[332719803,1721473940599,-585.03,0.00034794,14]
[332719804,1721473940608,-1002.09,0.00034794,14]
[332719805,1721473940617,-500.0,0.00034794,14]
[332719806,1721473940626,-500.0,0.00034794,14]
[332719807,1721473940636,-3024.54,0.00034794,14]
[332719808,1721473940645,-1239.04,0.00034794,14]
[332719809,1721473940655,-500.0,0.00034794,14]
[332719810,1721473940665,-500.0,0.00034794,14]
[332719811,1721473940675,-2000.0,0.00034794,14]
[332719812,1721473940684,-1094.07,0.00034794,14]
[332719813,1721473940693,-500.0,0.00034794,14]
[332719814,1721473940703,-819.64,0.00034794,14]
[332719815,1721473940712,-573.72,0.00034794,14]
[332719816,1721473940722,-500.0,0.00034794,14]
[332719817,1721473940731,-1422.16,0.00034794,14]
[332719818,1721473940740,-500.0,0.00034794,14]
[332719819,1721473940750,-1143.68,0.00034794,14]
[332719820,1721473940759,-1073.0,0.00034794,14]
[332719821,1721473940768,-1114.48,0.00034794,14]
[332719822,1721473940777,-1114.51,0.00034794,14]
[332719823,1721473940790,-1019.09,0.00034794,14]
[332719824,1721473940799,-1124.4,0.00034794,14]
[332719825,1721473940809,-500.0,0.00034794,14]
[332719826,1721473940818,-500.0,0.00034794,14]
[332719827,1721473940828,-500.0,0.00034794,14]
[332719828,1721473940837,-1042.66,0.00034794,14]
[332719829,1721473940847,-500.0,0.00034794,14]
[332719830,1721473940856,-1109.04,0.00034794,14]
[332719831,1721473940865,-500.0,0.00034794,14]
[332719832,1721473940875,-1114.06,0.00034794,14]
[332719833,1721473940885,-500.0,0.00034794,14]
[332719834,1721473940895,-500.0,0.00034794,14]
[332719835,1721473940904,-594.09,0.00034794,14]
[332719836,1721473940914,-520.16,0.00034794,14]
[332719837,1721473940924,-1211.15,0.00034794,14]
[332719838,1721473940934,-500.0,0.00034794,14]
[332719839,1721473940944,-500.0,0.00034794,14]
[332719840,1721473940953,-500.0,0.00034794,14]
[332719841,1721473940963,-500.0,0.00034794,14]
[332719842,1721473940976,-500.0,0.00034794,14]
[332719843,1721473940986,-500.0,0.00034794,14]
[332719844,1721473940995,-500.0,0.00034794,14]
[332719845,1721473941005,-500.0,0.00034794,14]
[332719846,1721473941014,-643.38,0.00034794,14]
[332719847,1721473941024,-1101.45,0.00034794,14]
[332719848,1721473941034,-626.45,0.00034794,14]
[332719849,1721473941043,-500.0,0.00034794,14]
[332719850,1721473941052,-1299.14,0.00034794,14]
[332719851,1721473941062,-500.0,0.00034794,14]
[332719852,1721473941072,-500.0,0.00034794,14]
[332719853,1721473941081,-524.77,0.00034794,14]
[332719854,1721473941091,-554.72,0.00034794,14]
[332719855,1721473941102,-939.51,0.00034794,14]
[332719856,1721473941112,-2026.13,0.00034794,14]
[332719857,1721473941122,-546.06,0.00034794,14]
[332719858,1721473941131,-880.55,0.00034794,14]
[332719859,1721473941141,-580.73,0.00034794,14]
[332719860,1721473941151,-1165.94,0.00034794,14]
[332719861,1721473941160,-500.0,0.00034794,14]
[332719862,1721473941170,-885.11,0.00034794,14]
[332719863,1721473941179,-510.41,0.00034794,14]
[332719864,1721473941191,-500.0,0.00034794,14]
[332719865,1721473941201,-1002.1,0.00034794,14]
[332719866,1721473941211,-1945.47,0.00034794,2]
[332719867,1721473941221,-710.86,0.00034794,14]
[332719868,1721473941230,-500.0,0.00034794,14]
[332719869,1721473941240,-893.65,0.00034794,14]
[332719870,1721473941249,-500.0,0.00034794,14]
[332719871,1721473941260,-1268.84,0.00034794,14]
[332719872,1721473941269,-500.0,0.00034794,14]
[332719873,1721473941279,-500.0,0.00034794,14]
[332719874,1721473941289,-611.35,0.00034794,14]
[332719875,1721473941299,-797.86,0.00034794,14]
[332719876,1721473941308,-500.0,0.00034794,14]
[332719877,1721473941317,-500.0,0.00034794,14]
[332719878,1721473941326,-689.07,0.00034794,14]
[332719879,1721473941336,-1114.69,0.00034794,14]
[332719880,1721473941345,-678.8,0.00034794,14]
[332719881,1721473941357,-500.0,0.00034794,14]
[332719882,1721473941366,-1166.55,0.00034794,14]
[332719883,1721473941376,-1280.72,0.00034794,14]
[332719884,1721473941386,-500.0,0.00034794,14]
[332719885,1721473941395,-576.28,0.00034794,14]
[332719886,1721473941404,-500.0,0.00034794,14]
[332719887,1721473941415,-500.0,0.00034794,14]
[332719888,1721473941424,-625.0,0.00034794,14]
[332719889,1721473941436,-870.6,0.00034794,14]
[332719890,1721473941446,-1000.0,0.00034794,14]
[332719891,1721473941455,-500.0,0.00034794,14]
[332719892,1721473941467,-1483.13,0.00034794,14]
[332719893,1721473941476,-1651.69,0.00034794,14]
[332719894,1721473941486,-614.48821029,0.00034794,14]
[332719895,1721473941495,-522.51,0.00034794,14]
[332719896,1721473941504,-515.23,0.00034794,14]
[332719897,1721473941514,-500.0,0.00034794,14]
[332719898,1721473941523,-500.0,0.00034794,14]
[332719899,1721473941534,-614.40834157,0.00034794,14]
[332719900,1721473941543,-1148.55,0.00034794,14]
[332719901,1721473941553,-500.0,0.00034794,14]
[332719902,1721473941563,-1457.04,0.00034794,14]
[332719903,1721473941572,-712.63,0.00034794,14]
[332719904,1721473941582,-1645.43,0.00034794,14]
[332719905,1721473941591,-673.81,0.00034794,14]
[332719906,1721473941600,-500.0,0.00034794,14]
[332719907,1721473941609,-1082.56,0.00034794,14]
[332719908,1721473941619,-533.63,0.00034794,14]
[332719909,1721473941628,-500.0,0.00034794,14]
[332719910,1721473941638,-1008.36,0.00034794,14]
[332719911,1721473941647,-1547.65,0.00034794,14]
[332719912,1721473941657,-500.0,0.00034794,14]
[332719913,1721473941667,-872.26,0.00034794,14]
[332719914,1721473941676,-500.0,0.00034794,14]
[332719915,1721473941686,-500.0,0.00034794,14]
[332719916,1721473941696,-500.0,0.00034794,14]
[332719917,1721473941705,-500.0,0.00034794,14]
[332719918,1721473941715,-500.0,0.00034794,14]
[332719919,1721473941724,-842.53,0.00034794,14]
[332719920,1721473941734,-500.0,0.00034794,14]
[332719921,1721473941743,-2046.57,0.00034794,14]
[332719922,1721473941752,-500.0,0.00034794,14]
[332719923,1721473941762,-151.0,0.00034794,7]
[332719924,1721473941771,-580.79,0.00034794,14]
[332719925,1721473941780,-992.0,0.00034794,14]
[332719926,1721473941790,-736.27,0.00034794,14]
[332719927,1721473941800,-1419.39,0.00034794,14]
[332719928,1721473941810,-500.0,0.00034794,14]
[332719929,1721473941819,-500.0,0.00034794,14]
[332719930,1721473941829,-500.0,0.00034794,14]
[332719931,1721473941838,-1178.78,0.00034794,14]
[332719932,1721473941848,-838.03,0.00034794,14]
[332719933,1721473941859,-1192.93,0.00034794,14]
[332719934,1721473941869,-823.1,0.00034794,14]
[332719935,1721473941879,-500.0,0.00034794,14]
[332719936,1721473941888,-640.96,0.00034794,14]
[332719937,1721473941897,-500.0,0.00034794,14]
[332719938,1721473941906,-500.0,0.00034794,14]
[332719939,1721473941915,-689.8,0.00034794,14]
[332719940,1721473941926,-520.83,0.00034794,14]
[332719941,1721473941936,-500.0,0.00034794,14]
[332719942,1721473941946,-2025.09,0.00034794,14]
[332719943,1721473941955,-500.0,0.00034794,14]
[332719944,1721473941966,-991.34,0.00034794,14]
[332719945,1721473941976,-500.0,0.00034794,14]
[332719946,1721473941986,-587.95,0.00034794,14]
[332719947,1721473941995,-650.56,0.00034794,14]
[332719948,1721473942005,-2486.61,0.00034794,14]
[332719949,1721473942014,-705.7,0.00034794,14]
[332719950,1721473942024,-639.9,0.00034794,14]
[332719951,1721473942034,-500.0,0.00034794,14]
[332719952,1721473942044,-874.2,0.00034794,14]
[332719953,1721473942054,-500.0,0.00034794,14]
[332719954,1721473942065,-1205.99,0.00034794,14]
[332719955,1721473942075,-500.0,0.00034794,14]
[332719956,1721473942085,-500.0,0.00034794,14]
[332719957,1721473942094,-500.0,0.00034794,14]
[332719958,1721473942104,-1623.55,0.00034794,14]
[332719959,1721473942113,-834.67,0.00034794,14]
[332719960,1721473942122,-500.0,0.00034794,14]
[332719961,1721473942131,-500.0,0.00034794,14]
[332719962,1721473942141,-500.0,0.00034794,14]
[332719963,1721473942150,-500.0,0.00034794,14]
[332719964,1721473942159,-530.46,0.00034794,14]
[332719965,1721473942168,-865.41,0.00034794,14]
[332719966,1721473942178,-1109.5,0.00034794,14]
[332719967,1721473942188,-690.07,0.00034794,14]
[332719968,1721473942197,-2619.18,0.00034794,14]
[332719969,1721473942207,-500.0,0.00034794,14]
[332719970,1721473942216,-766.77,0.00034794,14]
[332719971,1721473942226,-500.0,0.00034794,14]
[332719972,1721473942235,-500.0,0.00034794,14]
[332719973,1721473942244,-500.0,0.00034794,14]
[332719974,1721473942253,-1607.23,0.00034794,14]
[332719975,1721473942262,-1931.91,0.00034794,14]
[332719976,1721473942271,-500.0,0.00034794,14]
[332719977,1721473942281,-500.0,0.00034794,14]
[332719978,1721473942290,-957.27,0.00034794,14]
[332719979,1721473942300,-514.93,0.00034794,14]
[332719980,1721473942310,-966.14,0.00034794,14]
[332719981,1721473942319,-1547.04,0.00034794,14]
[332719982,1721473942328,-566.55,0.00034794,14]
[332719983,1721473942337,-1356.28,0.00034794,14]
[332719984,1721473942346,-6579.72,0.00034794,14]
[332719985,1721473942355,-1195.18,0.00034794,14]
[332719986,1721473942365,-500.0,0.00034794,14]
[332719987,1721473942374,-500.0,0.00034794,14]
[332719988,1721473942384,-500.0,0.00034794,14]
[332719989,1721473942394,-1037.88,0.00034794,14]
[332719990,1721473942403,-500.0,0.00034794,14]
[332719991,1721473942413,-559.7,0.00034794,14]
[332719992,1721473942422,-1115.76,0.00034794,14]
[332719993,1721473942431,-500.0,0.00034794,14]
[332719994,1721473942442,-17223.67,0.00034794,14]
[332719995,1721473942451,-714.83,0.00034794,14]
[332719996,1721473942460,-167.99396562,0.00034794,14]
[332719997,1721473942469,-512.04,0.00034794,14]
[332719998,1721473942480,-500.0,0.00034794,14]
[332719999,1721473942489,-1300.89,0.00034794,14]
[332720000,1721473942498,-500.0,0.00034794,14]
[332720001,1721473942508,-1753.8,0.00034794,14]
[332720002,1721473942518,-1374.48,0.00034794,7]
[332720003,1721473942527,-500.0,0.00034794,14]
[332720004,1721473942537,-2771.16,0.00034794,14]
[332720005,1721473942546,-500.0,0.00034794,14]
[332720006,1721473942556,-1274.75,0.00034794,14]
[332720007,1721473942565,-2453.79,0.00034794,14]
[332720008,1721473942574,-764.89,0.00034794,14]
[332720009,1721473942584,-500.0,0.00034794,14]
[332720010,1721473942593,-1365.27,0.00034794,14]
[332720011,1721473942602,-727.24,0.00034794,14]
[332720012,1721473942612,-1501.34,0.00034794,14]
[332720013,1721473942622,-1132.11,0.00034794,14]
[332720014,1721473942632,-1778.34,0.00034794,14]
[332720015,1721473942642,-500.0,0.00034794,14]
[332720016,1721473942754,-500.0,0.00034794,14]
[332720017,1721473942767,-500.0,0.00034794,14]
[332720018,1721473942776,-1596.48,0.00034794,14]
[332720019,1721473942786,-1124.54,0.00034794,14]
[332720020,1721473942797,-1241.68,0.00034794,14]
[332720021,1721473942807,-926.17,0.00034794,14]
[332720022,1721473942817,-583.3,0.00034794,14]
[332720023,1721473942826,-1705.25,0.00034794,14]
[332720024,1721473942835,-924.05,0.00034794,14]
[332720025,1721473942845,-2639.29,0.00034794,14]
[332720026,1721473942855,-3033.57,0.00034794,14]
[332720027,1721473942864,-1326.69,0.00034794,14]
[332720028,1721473942873,-3842.84,0.00034794,14]
[332720029,1721473942883,-500.0,0.00034794,14]
[332720030,1721473942892,-1305.69,0.00034794,14]
[332720031,1721473942902,-649.51,0.00034794,14]
[332720032,1721473942911,-1643.82,0.00034794,14]
[332720033,1721473942921,-2311.01,0.00034794,14]
[332720034,1721473942930,-2146.27,0.00034794,14]
[332720035,1721473942940,-823.93,0.00034794,14]
[332720036,1721473942949,-791.17,0.00034794,14]
[332720037,1721473942959,-694.65,0.00034794,14]
[332720038,1721473942968,-3853.01,0.00034794,14]
[332720039,1721473942978,-500.0,0.00034794,14]
[332720040,1721473942987,-885.54,0.00034794,14]
[332720041,1721473942996,-500.0,0.00034794,14]
[332720042,1721473943006,-1165.93,0.00034794,14]
[332720043,1721473943015,-1240.13,0.00034794,14]
[332720044,1721473943025,-734.23,0.00034794,14]
[332720045,1721473943035,-500.0,0.00034794,14]
[332720046,1721473943044,-500.0,0.00034794,14]
[332720047,1721473943054,-507.2983896,0.00034794,14]
[332720048,1721473943063,-958.73,0.00034794,14]
[332720049,1721473943073,-1274.63,0.00034794,14]
[332720050,1721473943083,-2805.87,0.00034794,14]
[332720051,1721473943092,-512.54,0.00034794,14]
[332720052,1721473943102,-1842.33,0.00034794,14]
[332720053,1721473943111,-500.0,0.00034794,14]
[332720054,1721473943121,-4449.71,0.00034794,14]
[332720055,1721473943132,-698.3,0.00034794,14]
[332720056,1721473943142,-727.9,0.00034794,14]
[332720057,1721473943151,-1861.2,0.00034794,14]
[332720058,1721473943161,-1979.67,0.00034794,14]
[332720059,1721473943171,-2783.18,0.00034794,14]
[332720060,1721473943180,-525.5,0.00034794,14]
[332720061,1721473943191,-500.0,0.00034794,14]
[332720062,1721473943200,-954.2,0.00034794,14]
[332720063,1721473943209,-3423.76,0.00034794,14]
[332720064,1721473943218,-3739.53,0.00034794,14]
[332720065,1721473943228,-1454.72,0.00034794,14]
[332720066,1721473943237,-4221.65,0.00034794,14]
[332720067,1721473943246,-562.22,0.00034794,14]
[332720068,1721473943255,-151.0,0.00034794,7]
[332720069,1721473943265,-1866.63,0.00034794,14]
[332720070,1721473943274,-1847.67,0.00034794,14]
[332720071,1721473943283,-717.61,0.00034794,14]
[332720072,1721473943292,-500.0,0.00034794,14]
[332720073,1721473943302,-1568.4,0.00034794,14]
[332720074,1721473943312,-2361.41,0.00034794,14]
[332720075,1721473943322,-533.76,0.00034794,14]
[332720076,1721473943331,-2086.21,0.00034794,14]
[332720077,1721473943341,-531.19,0.00034794,14]
[332720078,1721473943350,-500.0,0.00034794,14]
[332720079,1721473943360,-500.0,0.00034794,14]
[332720080,1721473943369,-7679.89,0.00034794,14]
[332720081,1721473943378,-5599.81,0.00034794,14]
[332720082,1721473943387,-678.77,0.00034794,14]
[332720083,1721473943397,-500.0,0.00034794,14]
[332720084,1721473943406,-2741.18,0.00034794,14]
[332720085,1721473943416,-150.0,0.00034794,14]
[332720086,1721473943426,-10000.0,0.00034794,7]
[332720087,1721473943435,-500.0,0.00034794,14]
[332720088,1721473943444,-1759.46,0.00034794,14]
[332720089,1721473943454,-10000.0,0.00034794,7]
[332720090,1721473943464,-3111.41,0.00034794,14]
[332720091,1721473943474,-3706.51,0.00034794,14]
[332720092,1721473943484,-500.0,0.00034794,14]
[332720093,1721473943494,-1042.97,0.00034794,14]
[332720094,1721473943503,-2100.36,0.00034794,14]
[332720095,1721473943513,-500.0,0.00034794,14]
[332720096,1721473943522,-500.0,0.00034794,14]
[332720097,1721473943532,-521.11,0.00034794,14]
[332720098,1721473943542,-1119.58,0.00034794,14]
[332720099,1721473943552,-1054.38,0.00034794,14]
[332720100,1721473943561,-151.0,0.00034794,7]
[332720101,1721473943570,-2778.17,0.00034794,14]
[332720102,1721473943580,-500.0,0.00034794,14]
[332720103,1721473943589,-1580.83,0.00034794,14]
[332720104,1721473943599,-500.0,0.00034794,14]
[332720105,1721473943609,-2896.14,0.00034794,14]
[332720106,1721473943618,-5371.08,0.00034794,14]
[332720107,1721473943628,-531.09,0.00034794,14]
[332720108,1721473943638,-1540.68,0.00034794,14]
[332720109,1721473943647,-2005.82,0.00034794,14]
[332720110,1721473943657,-862.76,0.00034794,14]
[332720111,1721473943667,-840.3,0.00034794,14]
[332720112,1721473943676,-562.41,0.00034794,14]
[332720113,1721473943686,-175.22011022,0.00034794,14]
[332720114,1721473943695,-1249.2,0.00034794,14]
[332720115,1721473943705,-634.33,0.00034794,14]
[332720116,1721473943714,-500.0,0.00034794,14]
[332720117,1721473943724,-500.0,0.00034794,14]
[332720118,1721473943733,-500.0,0.00034794,14]
[332720119,1721473943743,-1570.16,0.00034794,14]
[332720120,1721473943753,-500.0,0.00034794,14]
[332720121,1721473943763,-1581.58,0.00034794,14]
[332720122,1721473943774,-719.82,0.00034794,14]
[332720123,1721473943784,-500.0,0.00034794,14]
[332720124,1721473943794,-500.0,0.00034794,14]
[332720125,1721473943804,-500.0,0.00034794,14]
[332720126,1721473943814,-1146.91,0.00034794,14]
[332720127,1721473943823,-500.0,0.00034794,14]
[332720128,1721473943833,-3329.02,0.00034794,14]
[332720129,1721473943843,-853.86,0.00034794,14]
[332720130,1721473943853,-2264.07,0.00034794,14]
[332720131,1721473943863,-500.0,0.00034794,14]
[332720132,1721473943873,-2219.13,0.00034794,14]
[332720133,1721473943883,-500.0,0.00034794,14]
[332720134,1721473943892,-1120.96,0.00034794,14]
[332720135,1721473943902,-1902.93,0.00034794,14]
[332720136,1721473943912,-500.0,0.00034794,14]
[332720137,1721473943921,-868.34,0.00034794,14]
[332720138,1721473943931,-705.07,0.00034794,14]
[332720139,1721473943943,-447.00050554,0.00034794,14]
[332720140,1721473943953,-3016.63,0.00034794,14]
[332720141,1721473943962,-500.0,0.00034794,14]
[332720142,1721473943972,-500.0,0.00034794,14]
[332720143,1721473943982,-500.0,0.00034794,14]
[332720144,1721473943992,-500.0,0.00034794,14]
[332720145,1721473944002,-667.93,0.00034794,14]
[332720146,1721473944011,-1526.65,0.00034794,14]
[332720147,1721473944021,-1768.29,0.00034794,14]
[332720148,1721473944032,-500.0,0.00034794,14]
[332720149,1721473944044,-2466.45,0.00034794,14]
[332720150,1721473944054,-500.0,0.00034794,14]
[332720151,1721473944064,-1656.41,0.00034794,14]
[332720152,1721473944074,-500.0,0.00034794,14]
[332720153,1721473944083,-1167.22,0.00034794,14]
[332720154,1721473944094,-2366.03,0.00034794,14]
[332720155,1721473944104,-500.0,0.00034794,14]
[332720156,1721473944113,-578.52,0.00034794,14]
[332720157,1721473944123,-1218.57,0.00034794,14]
[332720158,1721473944133,-1550.98,0.00034794,14]
[332720159,1721473944143,-1548.59,0.00034794,14]
[332720160,1721473944153,-1528.37,0.00034794,14]
[332720161,1721473944163,-3673.09,0.00034794,14]
[332720162,1721473944172,-500.0,0.00034794,14]
[332720163,1721473944182,-652.12,0.00034794,14]
[332720164,1721473944194,-2277.43,0.00034794,14]
[332720165,1721473944205,-534.49556115,0.00034794,14]
[332720166,1721473944216,-1666.71,0.00034794,14]
[332720167,1721473944226,-599.55,0.00034794,14]
[332720168,1721473944236,-6734.78,0.00034794,14]
[332720169,1721473944246,-2116.33,0.00034794,14]
[332720170,1721473944256,-1260.65,0.00034794,14]
[332720171,1721473944266,-500.0,0.00034794,14]
[332720172,1721473944276,-2036.66,0.00034794,14]
[332720173,1721473944286,-1126.85,0.00034794,14]
[332720174,1721473944297,-500.0,0.00034794,14]
[332720175,1721473944307,-7985.23,0.00034794,14]
[332720176,1721473944317,-500.0,0.00034794,14]